fUSD/lending_fUSD_20250105
["ID","MTS","AMOUNT","RATE_DAILY","PERIOD"]
[347667913,1736044242358,-500.0,0.00011999,2]
[347667914,1736044242368,-500.0,0.00011999,2]
[347667915,1736044242378,-514.13578559,0.00011999,2]
[347667916,1736044242387,-1318.8,0.00011999,2]
[347667917,1736044242399,-1318.8,0.00011999,2]
[347667918,1736044242408,-500.45718365,0.00011999,2]
[347667919,1736044242418,-344.24529221,0.00011999,2]
[347667920,1736044242430,-621.45625709,0.00011999,2]
[347667921,1736044242439,-500.0,0.00011999,2]
[347667922,1736044242448,-500.0,0.00011999,2]
[347667923,1736044242457,-500.0,0.00011999,2]
[347667924,1736044242466,-724.43,0.00011999,2]
[347667925,1736044242476,-500.0,0.00011999,2]
[347667926,1736044242485,-500.85242229,0.00011999,2]
[347667927,1736044242495,-500.0,0.00011999,2]
[347667928,1736044242504,-500.0,0.00011999,2]
[347667929,1736044242514,-500.0,0.00011999,2]
[347667930,1736044242523,-503.16253722,0.00011999,2]
[347667931,1736044242532,-500.0,0.00011999,2]
[347667932,1736044242541,-502.85334359,0.00011999,2]
[347667933,1736044242550,-500.73155095,0.00011999,2]
[347667934,1736044242560,-392.19943419,0.00011999,2]
[347667935,1736044242569,-501.19288582,0.00011999,2]
[347667936,1736044242578,-501.71442419,0.00011999,2]
[347667937,1736044242588,-598.90143076,0.00011999,2]
[347667938,1736044242597,-500.0,0.00011999,2]
[347667939,1736044242606,-502.02571836,0.00011999,2]
[347667940,1736044242615,-616.58371052,0.00011999,2]
[347667941,1736044242624,-500.0,0.00011999,2]
[347667942,1736044242634,-501.10859047,0.00011999,2]
[347667943,1736044242644,-500.10524025,0.00011999,2]
[347667944,1736044242653,-502.07769575,0.00011999,2]
[347667945,1736044242662,-502.66460472,0.00011999,2]
[347667946,1736044242671,-500.0,0.00011999,2]
[347667947,1736044242680,-501.7187533,0.00011999,2]
[347667948,1736044242690,-500.0,0.00011999,2]
[347667949,1736044242699,-554.23858701,0.00011999,2]
[347667950,1736044242708,-500.0,0.00011999,2]
[347667951,1736044242718,-500.65869196,0.00011999,2]
[347667952,1736044242727,-502.23591067,0.00011999,2]
[347667953,1736044242736,-502.241694,0.00011999,2]
[347667954,1736044242745,-505.73530588,0.00011999,2]
[347667955,1736044242755,-501.58299343,0.00011999,2]
[347667956,1736044242764,-501.57781626,0.00011999,2]
[347667957,1736044242773,-501.89763586,0.00011999,2]
[347667958,1736044242782,-500.57304778,0.00011999,2]
[347667959,1736044242792,-500.93904614,0.00011999,2]
[347667960,1736044242801,-500.42984699,0.00011999,2]
[347667961,1736044242811,-500.0,0.00011999,2]
[347667962,1736044242820,-500.0,0.00011999,2]
[347667963,1736044242829,-500.88360018,0.00011999,2]
[347667964,1736044242838,-502.39902089,0.00011999,2]
[347667965,1736044242848,-500.0,0.00011999,2]
[347667966,1736044242857,-500.34100174,0.00011999,2]
[347667967,1736044242866,-503.36905404,0.00011999,2]
[347667968,1736044242875,-500.36177346,0.00011999,2]
[347667969,1736044242885,-500.74085064,0.00011999,2]
[347667970,1736044242895,-540.87124908,0.00011999,2]
[347667971,1736044242905,-500.0,0.00011999,2]
[347667972,1736044242914,-500.0,0.00011999,2]
[347667973,1736044242923,-510.90498625,0.00011999,2]
[347667974,1736044242932,-501.40920671,0.00011999,2]
[347667975,1736044242942,-501.33280927,0.00011999,2]
[347667976,1736044242951,-500.0,0.00011999,2]
[347667977,1736044242960,-500.40990124,0.00011999,2]
[347667978,1736044242969,-501.63682763,0.00011999,2]
[347667979,1736044242978,-501.67066244,0.00011999,2]
[347667980,1736044242988,-500.0,0.00011999,2]
[347667981,1736044242997,-500.59854696,0.00011999,2]
[347667982,1736044243007,-620.67871543,0.00011999,2]
[347667983,1736044243017,-501.74356611,0.00011999,2]
[347667984,1736044243026,-500.77230242,0.00011999,2]
[347667985,1736044243036,-503.32108171,0.00011999,2]
[347667986,1736044243045,-501.14991903,0.00011999,2]
[347667987,1736044243055,-511.96441742,0.00011999,2]
[347667988,1736044243065,-501.64194823,0.00011999,2]
[347667989,1736044243075,-575.58676666,0.00011999,2]
[347667990,1736044243086,-500.20926946,0.00011999,2]
[347667991,1736044243096,-500.32879582,0.00011999,2]
[347667992,1736044243106,-500.0,0.00011999,2]
[347667993,1736044243115,-504.12567017,0.00011999,2]
[347667994,1736044243125,-616.46,0.00011999,2]
[347667995,1736044243134,-500.98730571,0.00011999,2]
[347667996,1736044243144,-504.54876352,0.00011999,2]
[347667997,1736044243154,-500.21249895,0.00011999,2]
[347667998,1736044243163,-500.0,0.00011999,2]
[347667999,1736044243172,-4568.14,0.00011999,2]
[347668000,1736044243183,-4568.14,0.00011999,2]
[347668001,1736044243192,-505.04763292,0.00011999,2]
[347668002,1736044243201,-500.0,0.00011999,2]
[347668003,1736044243211,-500.87128603,0.00011999,2]
[347668004,1736044243222,-633.83136784,0.00011999,2]
[347668005,1736044243232,-501.25458113,0.00011999,2]
[347668006,1736044243241,-500.47225447,0.00011999,2]
[347668007,1736044243252,-501.17287039,0.00011999,2]
[347668008,1736044243261,-501.76617191,0.00011999,2]
[347668009,1736044243271,-500.4464742,0.00011999,2]
[347668010,1736044243280,-500.0,0.00011999,2]
[347668011,1736044243288,-505.14545267,0.00011999,2]
[347668012,1736044243297,-500.42929202,0.00011999,2]
[347668014,1736044243307,-502.3717039,0.00011999,2]
[347668016,1736044243315,-500.26211626,0.00011999,2]
[347668018,1736044243324,-500.39546356,0.00011999,2]
[347668019,1736044243335,-502.09606675,0.00011999,2]
[347668020,1736044243344,-502.47893918,0.00011999,2]
[347668021,1736044243353,-500.36625948,0.00011999,2]
[347668022,1736044243362,-525.58211664,0.00011999,2]
[347668023,1736044243371,-502.59896043,0.00011999,2]
[347668024,1736044243380,-500.0,0.00011999,2]
[347668025,1736044243390,-501.04996337,0.00011999,2]
[347668026,1736044243399,-502.10050873,0.00011999,2]
[347668027,1736044243408,-501.83161645,0.00011999,2]
[347668028,1736044243417,-503.91993468,0.00011999,2]
[347668029,1736044243426,-504.85294724,0.00011999,2]
[347668030,1736044243436,-504.6252115,0.00011999,2]
[347668031,1736044243445,-501.60598122,0.00011999,2]
[347668033,1736044243454,-502.23653458,0.00011999,2]
[347668034,1736044243463,-500.49557963,0.00011999,2]
[347668035,1736044243472,-500.0,0.00011999,2]
[347668036,1736044243481,-500.88898059,0.00011999,2]
[347668037,1736044243489,-903.25,0.00011999,2]
[347668038,1736044243499,-500.0,0.00011999,2]
[347668039,1736044243508,-500.0,0.00011999,2]
[347668040,1736044243518,-500.0,0.00011999,2]
[347668041,1736044243527,-500.0,0.00011999,2]
[347668042,1736044243536,-502.58342483,0.00011999,2]
[347668043,1736044243546,-1251.32,0.00011999,2]
[347668044,1736044243555,-1251.32,0.00011999,2]
[347668045,1736044243564,-151.0472603,0.00011999,2]
[347668046,1736044243573,-503.42676745,0.00011999,2]
[347668047,1736044243582,-501.16200665,0.00011999,2]
[347668048,1736044243591,-501.49482843,0.00011999,2]
[347668049,1736044243600,-5020.56452396,0.00011999,2]
[347668050,1736044243610,-610.65161312,0.00011999,2]
[347668051,1736044243619,-500.0,0.00011999,2]
[347668052,1736044243628,-507.60858355,0.00011999,2]
[347668053,1736044243637,-501.36224441,0.00011999,2]
[347668054,1736044243646,-500.18422177,0.00011999,2]
[347668055,1736044243655,-322.26237309,0.00011999,2]
[347668056,1736044243664,-500.0,0.00011999,2]
[347668057,1736044243673,-502.28183027,0.00011999,2]
[347668058,1736044243681,-505.00800572,0.00011999,2]
[347668059,1736044243690,-500.25742188,0.00011999,2]
[347668060,1736044243699,-502.03730811,0.00011999,2]
[347668061,1736044243708,-500.0,0.00011999,2]
[347668062,1736044243717,-501.52734659,0.00011999,2]
[347668063,1736044243726,-500.59697931,0.00011999,2]
[347668064,1736044243735,-191.54080535,0.00011999,2]
[347668065,1736044243744,-500.83816516,0.00011999,2]
[347668066,1736044243754,-500.96937882,0.00011999,2]
[347668067,1736044243763,-191.35227766,0.00011999,2]
[347668068,1736044243772,-510.06592732,0.00011999,2]
[347668069,1736044243781,-502.01282178,0.00011999,2]
[347668070,1736044243791,-501.18404383,0.00011999,2]
[347668071,1736044243800,-506.76053732,0.00011999,2]
[347668072,1736044243809,-62817.80927724,0.00011999,2]
[347668073,1736044243818,-956.45409922,0.00011999,2]
[347668074,1736044243828,-7424.53973332,0.00012,2]
[347668075,1736044243837,-855.91390249,0.00012,2]
[347668076,1736044243848,-1438.04840585,0.00012,2]
[347668077,1736044243857,-16083.06506313,0.00012,2]
[347668078,1736044243866,-1045.85338607,0.00012,2]
[347668079,1736044243876,-53063.0,0.00012,2]
[347668080,1736044243885,-120000.0,0.00012,6]
[347668081,1736044243894,-10009.26498303,0.00012,2]
[347668082,1736044243904,-2963.05,0.00012,2]
[347668083,1736044243914,-30066.6742345,0.00012,2]
[347668084,1736044243923,-200.0,0.00012,2]
[347668085,1736044243932,-10586.68277259,0.00012,2]
[347668086,1736044243942,-115134.0,0.00012,2]
[347668087,1736044243951,-150.0,0.00012,2]
[347668088,1736044243960,-2196.0105,0.00012,2]
[347668089,1736044243969,-1000.0,0.00012,2]
[347668090,1736044243979,-1000.0,0.00012,2]
[347668091,1736044243988,-1000.0,0.00012,2]
[347668092,1736044243997,-1000.0,0.00012,2]
[347668093,1736044244006,-1000.0,0.00012,2]
[347668094,1736044244016,-1000.0,0.00012,2]
[347668095,1736044244026,-1000.0,0.00012,2]
[347668096,1736044244036,-1000.0,0.00012,2]
[347668097,1736044244045,-1000.0,0.00012,2]
[347668098,1736044244054,-1000.0,0.00012,2]
[347668099,1736044244063,-3211.9175,0.00012,2]
[347668100,1736044244072,-1389.3161,0.00012,2]
[347668101,1736044244086,-150.0,0.00012,2]
[347668102,1736044244095,-250.0,0.00012,2]
[347668103,1736044244105,-250.0,0.00012,2]
[347668104,1736044244114,-250.0,0.00012,2]
[347668105,1736044244124,-250.0,0.00012,2]
[347668106,1736044244133,-250.0,0.00012,2]
[347668107,1736044244142,-250.0,0.00012,2]
[347668108,1736044244153,-250.0,0.00012,2]
[347668109,1736044244294,-250.0,0.00012,2]
[347668110,1736044244304,-250.0,0.00012,2]
[347668111,1736044244313,-250.0,0.00012,2]
[347668112,1736044244322,-250.0,0.00012,2]
[347668113,1736044244332,-250.0,0.00012,2]
[347668114,1736044244341,-250.0,0.00012,2]
[347668115,1736044244350,-250.0,0.00012,2]
[347668116,1736044244359,-250.0,0.00012,2]
[347668117,1736044244368,-250.0,0.00012,2]
[347668118,1736044244377,-250.0,0.00012,2]
[347668119,1736044244386,-250.0,0.00012,2]
[347668120,1736044244395,-250.0,0.00012,2]
[347668121,1736044244405,-250.0,0.00012,2]
[347668122,1736044244414,-250.0,0.00012,2]
[347668123,1736044244423,-250.0,0.00012,2]
[347668124,1736044244432,-250.0,0.00012,2]
[347668125,1736044244443,-250.0,0.00012,2]
[347668126,1736044244455,-250.0,0.00012,2]
[347668127,1736044244465,-150.0,0.00012,2]
[347668128,1736044244475,-474.7,0.00012,2]
[347668129,1736044244484,-500.0,0.00012,2]
[347668130,1736044244494,-200.7064976,0.00012,2]
[347668131,1736044244505,-1000.0,0.00012,2]
[347668132,1736044244516,-205.0,0.0001201,2]
[347668133,1736044244527,-202.0,0.0001201,2]
[347668134,1736044244537,-205.0,0.0001201,2]
[347668135,1736044244546,-202.0,0.0001201,2]
[347668136,1736044244555,-200.0,0.0001201,2]
[347668137,1736044244565,-1318.8,0.00012027,2]
[347668138,1736044244575,-724.43,0.00012027,2]
[347668139,1736044244584,-4568.14,0.00012027,2]
[347668140,1736044244595,-500.0,0.00012027,2]
[347668141,1736044244604,-125355.0,0.00012027,2]
[347668142,1736044244614,-26226.0,0.00012027,2]
[347668143,1736044244623,-13486.0,0.00012027,2]
[347668144,1736044244633,-15164.0,0.00012027,2]
[347668145,1736044244643,-500.0,0.00012048,2]
[347668146,1736044244653,-1251.32,0.00012048,2]
[347668147,1736044244662,-667.97730385,0.00012049,2]
[347668148,1736044244672,-500.0,0.00012049,2]
[347668149,1736044244682,-1318.8,0.00012049,2]
[347668150,1736044244692,-1318.8,0.00012049,2]
[347668151,1736044244702,-1318.8,0.00012049,2]
[347668152,1736044244711,-1318.8,0.00012049,2]
[347668153,1736044244722,-1318.8,0.00012049,2]
[347668154,1736044244732,-1318.8,0.00012049,2]
[347668155,1736044244744,-1318.8,0.00012049,2]
[347668156,1736044244752,-1318.8,0.00012049,2]
[347668157,1736044244762,-1318.8,0.00012049,2]
[347668158,1736044244771,-1318.8,0.00012049,2]
[347668159,1736044244780,-1318.8,0.00012049,2]
[347668160,1736044244790,-1318.8,0.00012049,2]
[347668161,1736044244799,-1318.8,0.00012049,2]
[347668162,1736044244808,-1318.8,0.00012049,2]
[347668163,1736044244817,-1318.8,0.00012049,2]
[347668164,1736044244826,-1318.8,0.00012049,2]
[347668165,1736044244835,-1318.8,0.00012049,2]
[347668166,1736044244845,-1318.8,0.00012049,2]
[347668167,1736044244855,-1318.8,0.00012049,2]
[347668168,1736044244864,-1318.8,0.00012049,2]
[347668169,1736044244873,-1319.02242843,0.00012049,2]
[347668170,1736044244882,-500.0,0.00012049,2]
[347668171,1736044244892,-500.0,0.00012049,2]
[347668172,1736044244901,-500.0,0.00012049,2]
[347668173,1736044244910,-500.0,0.00012049,2]
[347668174,1736044244920,-500.0,0.00012049,2]
[347668175,1736044244931,-500.0,0.00012049,2]
[347668176,1736044244941,-500.0,0.00012049,2]
[347668177,1736044244950,-500.0,0.00012049,2]
[347668178,1736044244959,-500.0,0.00012049,2]
[347668179,1736044244969,-500.0,0.00012049,2]
[347668180,1736044244978,-500.0,0.00012049,2]
[347668181,1736044244988,-500.0,0.00012049,2]
[347668182,1736044244998,-500.0,0.00012049,2]
[347668183,1736044245007,-500.0,0.00012049,2]
[347668184,1736044245017,-500.0,0.00012049,2]
[347668185,1736044245026,-500.0,0.00012049,2]
[347668186,1736044245036,-500.0,0.00012049,2]
[347668187,1736044245045,-500.0,0.00012049,2]
[347668188,1736044245054,-477.06738151,0.00012049,2]
[347668189,1736044245064,-724.43,0.00012049,2]
[347668190,1736044245076,-724.43,0.00012049,2]
[347668191,1736044245086,-724.43,0.00012049,2]
[347668192,1736044245095,-724.43,0.00012049,2]
[347668193,1736044245105,-724.43,0.00012049,2]
[347668194,1736044245115,-724.43,0.00012049,2]
[347668195,1736044245125,-724.43,0.00012049,2]
[347668196,1736044245135,-724.43,0.00012049,2]
[347668197,1736044245144,-724.43,0.00012049,2]
[347668198,1736044245153,-724.43,0.00012049,2]
[347668199,1736044245163,-724.43,0.00012049,2]
[347668200,1736044245174,-724.43,0.00012049,2]
[347668201,1736044245184,-724.43,0.00012049,2]
[347668202,1736044245193,-724.43,0.00012049,2]
[347668203,1736044245203,-724.43,0.00012049,2]
[347668204,1736044245214,-724.43,0.00012049,2]
[347668205,1736044245224,-724.43,0.00012049,2]
[347668206,1736044245234,-724.58268402,0.00012049,2]
[347668207,1736044245243,-4568.14,0.00012049,2]
[347668208,1736044245253,-4568.14,0.00012049,2]
[347668209,1736044245262,-4568.14,0.00012049,2]
[347668210,1736044245271,-4568.14,0.00012049,2]
[347668211,1736044245280,-4568.14,0.00012049,2]
[347668212,1736044245289,-4568.14,0.00012049,2]
[347668213,1736044245298,-4568.14,0.00012049,2]
[347668214,1736044245307,-4568.14,0.00012049,2]
[347668215,1736044245316,-4568.14,0.00012049,2]
[347668216,1736044245326,-4568.14,0.00012049,2]
[347668217,1736044245335,-4568.14,0.00012049,2]
[347668218,1736044245346,-4568.14,0.00012049,2]
[347668219,1736044245356,-4568.14,0.00012049,2]
[347668220,1736044245365,-4568.14,0.00012049,2]
[347668221,1736044245374,-4568.14,0.00012049,2]
[347668222,1736044245384,-4568.14,0.00012049,2]
[347668223,1736044245395,-4568.14,0.00012049,2]
[347668224,1736044245405,-4568.14,0.00012049,2]
[347668225,1736044245414,-4568.14,0.00012049,2]
[347668226,1736044245424,-4568.26766111,0.00012049,2]
[347668227,1736044245433,-500.0,0.00012049,2]
[347668228,1736044245443,-500.0,0.00012049,2]
[347668229,1736044245452,-500.0,0.00012049,2]
[347668230,1736044245462,-500.0,0.00012049,2]
[347668231,1736044245471,-359.99425379,0.00012049,2]
[347668232,1736044245481,-1251.32,0.00012049,2]
[347668233,1736044245490,-1251.32,0.00012049,2]
[347668234,1736044245499,-1251.32,0.00012049,2]
[347668235,1736044245508,-1251.32,0.00012049,2]
[347668236,1736044245518,-1251.32,0.00012049,2]
[347668237,1736044245527,-1251.32,0.00012049,2]
[347668238,1736044245536,-1251.32,0.00012049,2]
[347668239,1736044245546,-1251.32,0.00012049,2]
[347668240,1736044245556,-1251.32,0.00012049,2]
[347668241,1736044245565,-1251.32,0.00012049,2]
[347668242,1736044245575,-1251.32,0.00012049,2]
[347668243,1736044245584,-1251.32,0.00012049,2]
[347668244,1736044245594,-1251.32,0.00012049,2]
[347668246,1736044245603,-1251.32,0.00012049,2]
[347668248,1736044245612,-1251.32,0.00012049,2]
[347668250,1736044245622,-1251.32,0.00012049,2]
[347668252,1736044245631,-1251.32,0.00012049,2]
[347668253,1736044245640,-1251.32,0.00012049,2]
[347668254,1736044245650,-1251.32,0.00012049,2]
[347668255,1736044245660,-1251.38014892,0.00012049,2]
[347668256,1736044245670,-180553.66211863,0.0001205,2]
[347668258,1736044245883,-1056.27100001,0.0001205,2]
[347668259,1736044245903,-8458.8754854,0.0001205,2]
[347668260,1736044245991,-2513.98110605,0.0001205,2]
[347668261,1736044246003,-570.916685,0.0001205,2]
[347668262,1736044246014,-657.41777,0.0001205,2]
[347668263,1736044246026,-360.26241,0.0001205,2]
[347668264,1736044246037,-791.46804647,0.0001205,2]
[347668265,1736044246048,-1406.09166,0.0001205,2]
[347668266,1736044246069,-5644.65999999,0.0001205,2]
[347668267,1736044246084,-280.1210306,0.0001205,2]
[347668275,1736044246276,-949.4051284,0.00010656,2]
[347668277,1736044246294,-550.5948716,0.00010656,2]
[347668279,1736044246303,-862.92418428,0.0001205,2]
[347668281,1736044246314,-572006.84627844,0.0001205,2]
[347668282,1736044246324,-17393.18664573,0.0001205,2]
[347668283,1736044246335,-2852.5,0.0001205,2]
[347668284,1736044246345,-4109.6526662,0.0001205,2]
[347668285,1736044246356,-3785.15416186,0.0001205,2]
[347668286,1736044246367,-534.36519297,0.0001205,2]
[347668288,1736044798786,1000.0,0.0002,120]
[347668289,1736044887755,1500.0,0.0002,120]
[347668290,1736045010415,311.0,0.0002,120]
[347668291,1736045031459,1015.0,0.0002,120]
[347668351,1736045231210,501.70331246,0.0002,120]
[347668362,1736045432154,-1394.93,8.737e-05,2]
[347668363,1736045432164,-500.0,9.862e-05,2]
[347668364,1736045432173,-42.70733463,9.862e-05,2]
[347668365,1736045432184,-322.25307365,9.862e-05,2]
[347668366,1736045432195,-135.03959172,9.862e-05,2]
[347668367,1736045432205,-185.2334034,9.862e-05,2]
[347668368,1736045432214,-123.06374755,0.00010079,2]
[347668369,1736045432326,-376.70625245,0.00010079,2]
[347668370,1736045432336,-500.0,0.00010219,2]
[347668371,1736045432346,-499.68,0.00010296,2]
[347668372,1736045432356,-23900.0,0.00010603,2]
[347668373,1736045432365,-4963.23430278,0.00010635,4]
[347668374,1736045432375,-105.37254026,0.00010698,2]
[347668375,1736045432540,-319.5,0.00010698,2]
[347668376,1736045432551,-575.12745974,0.00010698,2]
[347668377,1736045432560,-278.4351,0.0001071,2]
[347668378,1736045432569,-433.79,0.00010768,2]
[347668379,1736045432579,-150.0,0.00010795,2]
[347668380,1736045432588,-1026.04403954,0.0001081,2]
[347668593,1736045440187,-273.1445,0.0001081,2]
[347668595,1736045440199,-700.81146046,0.0001081,2]
[347668597,1736045440208,-150.0,0.00010825,2]
[347668599,1736045440218,-156.94336653,0.00010825,2]
[347668601,1736045440228,-159.40078768,0.00010825,2]
[347668604,1736045440237,-2299.63363772,0.00010825,2]
[347668606,1736045440248,-2049.89997072,0.00010825,2]
[347668619,1736045440366,-915.34000024,0.00010825,2]
[347668638,1736045440534,-437.99897411,0.00010825,2]
[347668641,1736045440545,-4297.11741721,0.00010825,2]
[347668643,1736045440555,-282.92,0.00010825,2]
[347668645,1736045440564,-250.0,0.00010862,2]
[347668647,1736045440574,-180.6,0.00010862,2]
[347668649,1736045440584,-242.87,0.00010874,2]
[347668650,1736045440593,-306.48,0.00010904,2]
[347668652,1736045440602,-250.0,0.00010908,2]
[347668654,1736045440611,-3722.96,0.0001092,2]
[347668657,1736045440621,-231.48,0.00010928,2]
[347668658,1736045440630,-150.0,0.00010948,2]
[347668661,1736045440640,-550.0,0.00011,2]
[347668662,1736045440651,-1394.93,0.00011001,2]
[347668665,1736045440660,-73.72536532,0.00011224,2]
[347668848,1736045443385,-94.41463468,0.00011224,2]
[347668849,1736045443395,-298.88131798,0.00011232,2]
[347668850,1736045443549,-201.11868202,0.00011232,2]
[347668851,1736045443559,-331.342,0.0001145,2]
[347668852,1736045443570,-671.85,0.00011794,2]
[347668853,1736045443579,-559.78627703,0.000118,2]
[347668859,1736045446138,-440.21372297,0.000118,2]
[347668860,1736045446148,-1048.77830975,0.00011809,2]
[347668861,1736045446157,-1094.38204,0.00011809,2]
[347668862,1736045446167,-769.67928155,0.00011809,2]
[347668863,1736045446178,-354.17392122,0.00011809,2]
[347668864,1736045446188,-508.75,0.00011809,2]
[347668865,1736045446197,-490.98,0.00011809,2]
[347668866,1736045446206,-365.0,0.000119,2]
[347668867,1736045446216,-244.94607378,0.000119,2]
[347668868,1736045446303,-755.05392622,0.000119,2]
[347668869,1736045446313,-230.0,0.000119,2]
[347668874,1736045446322,-2500.0,0.00011949,2]
[347668876,1736045446510,-780.99965047,0.00011996,3]
[347668878,1736045446520,-493.93,0.00011997,2]
[347668880,1736045446529,-569.11602522,0.00011997,2]
[347668882,1736045446539,-634.58836287,0.00011997,2]
[347668884,1736045446548,-534.15813523,0.00011997,2]
[347668886,1736045446557,-446.25224526,0.00011997,2]
[347668888,1736045446567,-570.71899837,0.00011997,2]
[347668890,1736045446577,-500.0,0.00011997,2]
[347668892,1736045446586,-622.77877006,0.00011997,2]
[347668894,1736045446596,-358.7240012,0.00011997,2]
[347668895,1736045446606,-513.44790389,0.00011997,2]
[347668896,1736045446615,-249.21687736,0.00011997,2]
[347668897,1736045446624,-500.0,0.00011997,2]
[347668898,1736045446634,-500.0,0.00011997,2]
[347668899,1736045446642,-23.84807808,0.00011997,2]
[347668900,1736045446857,-476.15192192,0.00011997,2]
[347668901,1736045446867,-72.93524433,0.00011997,2]
[347668903,1736045631387,161.0,0.00011997,30]
[347668904,1736045802470,162.0,0.00011997,30]
[347668907,1736046104242,1000.0,0.0002,120]
[347668908,1736046112578,1000.0,0.0002,120]
[347668909,1736046126762,1000.0,0.0002,120]
[347668910,1736046145108,1000.0,0.0002,120]
[347668911,1736046159575,1000.0,0.0002,120]
[347668912,1736046169693,12118779.20278514,0.0002,120]
[347668913,1736046170481,637.0,2.394e-05,2]
[347668914,1736046178395,1000.0,0.00017999,90]
[347668915,1736046198352,1000.0,0.00017999,90]
[347668916,1736046320088,1000.0,0.00012145,29]
[347668917,1736046345311,1000.0,0.00012145,29]
[347668918,1736046355979,1000.0,0.00012145,29]
[347668919,1736046384919,1000.0,0.00012145,29]
[347668920,1736046402112,1000.0,0.00012145,29]
[347668923,1736046587211,-50000.0,0.00013,30]
[347668929,1736046632260,-1346.73,8.852e-05,2]
[347668930,1736046632270,-500.0,9.862e-05,2]
[347668931,1736046632280,-500.0,9.862e-05,2]
[347668932,1736046632289,-154.31504671,9.862e-05,2]
[347668934,1736046632299,-623.5,0.00010137,2]
[347668935,1736046632308,-150.0,0.00010187,2]
[347668936,1736046632319,-5532.55266446,0.00010413,2]
[347668937,1736046632330,-250.0,0.00010775,2]
[347668938,1736046632340,-250.0,0.00010789,2]
[347668939,1736046632350,-184.69,0.00010791,2]
[347668940,1736046632359,-8449.26825229,0.000108,2]
[347668941,1736046632372,-8821.99174771,0.000108,2]
[347668942,1736046632382,-157.65215269,0.00010825,2]
[347668943,1736046632392,-1000.0,0.00010832,2]
[347668944,1736046632402,-200.0,0.00010832,2]
[347668945,1736046632411,-508.76,0.00010845,2]
[347668946,1736046632420,-1329.35,0.00010883,2]
[347668947,1736046632429,-267.87,0.00010894,2]
[347668948,1736046632439,-1346.73,0.00011116,2]
[347668949,1736046632449,-500.55,0.00011231,2]
[347668950,1736046632458,-504.55,0.00011231,2]
[347668951,1736046632468,-1000.0,0.000114,2]
[347668952,1736046632477,-206.69,0.00011405,2]
[347668953,1736046632487,-332.344,0.0001145,2]
[347668954,1736046632496,-500.79188589,0.00011561,2]
[347668955,1736046632506,-1000.0,0.000116,2]
[347668956,1736046632516,-150.0,0.00011699,2]
[347668957,1736046632525,-151.86,0.00011731,2]
[347668958,1736046632535,-150.0,0.00011742,2]
[347668959,1736046632544,-150.0,0.00011761,2]
[347668960,1736046632554,-150.0,0.00011785,2]
[347668961,1736046632564,-200.0,0.000118,2]
[347668962,1736046632573,-825.89,0.000118,2]
[347668963,1736046632585,-186.198,0.000118,2]
[347668964,1736046632594,-1005.0,0.000118,2]
[347668965,1736046632604,-150.0,0.00011809,2]
[347668966,1736046632614,-150.0,0.00011827,2]
[347668967,1736046632623,-150.0,0.00011858,2]
[347668968,1736046632633,-150.0,0.00011861,2]
[347668969,1736046632643,-3000.0,0.0001188,2]
[347668970,1736046632655,-150.0,0.0001188,2]
[347668971,1736046632666,-150.0,0.00011887,2]
[347668972,1736046632676,-200.83517582,0.00011901,2]
[347668973,1736046632689,-69.03537793,0.00011901,2]
[347668974,1736046632699,-150.0,0.00011903,2]
[347668975,1736046632708,-150.60913055,0.00011908,2]
[347668976,1736046632718,-150.0,0.00011908,2]